Cogmind - Beta 14 @@@ ROGUE MODE // 2024.11.19 @ 12:37:27 Player: Fangrelle Result: Destroyed by HX-ACX(R) with Subdweller Machine Gun Performance ------------- Evolutions (0) 0 Regions Visited (3) 600 Robots Destroyed (28) 140 Value Destroyed (604) 604 Prototype IDs (0) 0 Alien Tech Used (0) 0 Bonus (186) 186 TOTAL SCORE: 1530 Bonus ------- Follower Combat Kills 186 Cogmind --------- Core Integrity 0/250 Matter 187/300 Energy 265/265 System Corruption 0% Temperature Cool (0) Movement Treading (160) Location -10/Subcaves Parts ------- > --- POWER (1) -------- Improved Ion Engine > --- PROPULSION (2) --- Light Treads Light Treads > --- UTILITY (2) ------ Large Storage Unit > --- WEAPON (2) ------- Light Cannon Ripper > --- INVENTORY (15) --- Visual Processing Unit Sensor Array Signal Interpreter Improved Terrain Scanner Seismic Detector Light Armor Plating Authchip [R/Combat] Tractor Beam Cobbler Unit Heavy Assault Rifle Mining Laser Shrapnel Trap Shrapnel Trap Peak State ------------ > --- POWER ------------ Improved Ion Engine > --- PROPULSION ------- Light Treads Light Treads > --- UTILITY ---------- Large Storage Unit Light Armor Plating > --- WEAPON ----------- Light Cannon Ripper > --- INVENTORY -------- Visual Processing Unit Sensor Array Signal Interpreter Improved Terrain Scanner Seismic Detector Light Armor Plating Authchip [R/Combat] Tractor Beam Assault Rifle Heavy Assault Rifle Light Cannon Light Cannon Mining Laser Shrapnel Trap Shrapnel Trap [Rating: 13] Favorites ----------- Power Ion Engine Engine Ion Engine Propulsion Light Treads Treads Light Treads Leg Aluminum Leg Wheel Wheel Utility Large Storage Unit Device Improved Terrain Scanner Storage Large Storage Unit Protection Light Armor Plating Weapon Light Cannon Energy Gun Medium Laser Ballistic Cannon Light Cannon Special Weapon Mining Laser Slashing Weapon Ripper Build | -11 -10 -10 -10 ------- Run | Yrd Mat Min Sub Slots Evolved . | . . . . Power . | . . . . Propulsion . | . . . . Utility . | . . . . Weapon . | . . . . Parts Attached 25 | 4 14 3 4 Power 3 | 1 1 1 . Engine 3 | 1 1 1 . Core . | . . . . Reactor . | . . . . Propulsion 8 | 2 5 1 . Treads 5 | . 4 1 . Leg . | . . . . Wheel 3 | 2 1 . . Hover . | . . . . Flight . | . . . . Utility 3 | 1 1 1 . Device 1 | 1 . . . Storage 1 | . 1 . . Processor . | . . . . Hackware . | . . . . Protection 1 | . . 1 . Artifact . | . . . . Weapon 11 | . 7 . 4 Energy Gun 3 | . 3 . . Energy Cannon . | . . . . Ballistic Gun . | . . . . Ballistic Cannon 4 | . 2 . 2 Launcher . | . . . . Special Weapon 2 | . 2 . . Impact Weapon . | . . . . Slashing Weapon 2 | . . . 2 Piercing Weapon . | . . . . Special Melee Weapon . | . . . . Unidentified Prototypes . | . . . . Parts Lost 6 | . 3 1 2 Power 1 | . 1 . . Propulsion 2 | . 1 1 . Utility 1 | . . . 1 Weapon 2 | . 1 . 1 Highest Loss Streak 2 | . 2 1 2 To Critical Strikes . | . . . . Average Slot Usage (%) 99 | . 98 100 100 Engine 13 | . 13 14 14 Treads 24 | . 21 28 28 Wheel 2 | . 5 . . Device 6 | . 14 . . Storage 14 | . 14 14 14 Protection 7 | . . 13 14 Energy Gun 8 | . 18 . . Ballistic Cannon 17 | . 6 28 22 Special Weapon 1 | . 2 . . Slashing Weapon 1 | . . . 5 Peak Build Rating 13 | 9 10 10 13 Average Rating 9 | 7 8 9 11 On Entrance 8 | 6 9 10 10 Naked Turns . | . . . . Heaviest Build 36 | 15 32 36 36 Greatest Support 40 | 20 40 40 40 Greatest Overweight (x) 1 | . 1 . . Average Overweight (x) . | . . . . Largest Inventory Capacity 15 | 8 15 15 15 Average Capacity 12 | 8 10 15 15 Most Carried 15 | 8 10 15 15 Average Carried 10 | 6 5 13 14 Final Capacity 15 | 8 15 15 15 Final Carried 15 | 6 10 15 14 Class Distribution -------------------- 100% | Mutant Dominant Class ---------------- Mutant | -10/Materials Mutant | -10/Mines Mutant | -10/Subcaves Resources | -11 -10 -10 -10 ----------- Run | Yrd Mat Min Sub Matter Collected 726 | 200 203 243 80 Remotely . | . . . . Salvage Created 922 | 71 667 100 84 Parts 52 | 6 33 6 7 Haulers Intercepted 2 | . 2 . . Recyclers Shooed . | . . . . Parts Field Recycled . | . . . . Retrieved Matter . | . . . . Parts Self-Destructed 10 | . . . 10 Prevented . | . . . . Kills | -11 -10 -10 -10 ------- Run | Yrd Mat Min Sub Combat Hostiles Destroyed 18 | . 13 3 2 Guns 9 | . 9 . . Cannons 9 | . 4 3 2 Classes Destroyed 10 | 2 6 . 2 Worker 1 | . 1 . . Tunneler 1 | 1 . . . Hauler 2 | . 2 . . Recycler 2 | 1 . 1 . Operator 1 | . 1 . . Watcher 3 | . 3 . . Swarmer 6 | . 3 3 . Grunt 10 | . 10 . . Cobbler 1 | . . . 1 Subdweller 2 | . . . 2 Best Kill Streak 3 | 2 3 3 1 Combat Bots Only 3 | . 3 3 1 Max Kills in Single Turn 1 | 1 1 1 1 Gunslinging . | . . . . Exploded . | . . . . Melee . | . . . . Uniques/NPCs Destroyed . | . . . . Combat | -11 -10 -10 -10 -------- Run | Yrd Mat Min Sub Hostile Shots Fired 143 | . 72 47 24 Missed 44 | . 20 15 9 Damage Taken 1310 | . 617 379 314 Core 251 | . 166 21 64 Absorbed by Shields . | . . . . Core Remaining (%) 100 | 100 . . . Volleys Fired 123 | 4 82 20 17 Largest 2 | 2 2 2 2 Hottest 100 | 90 100 70 70 Shots Fired 235 | 8 154 40 33 Gun 124 | 8 116 . . Cannon 105 | . 32 40 33 Launcher . | . . . . Special 6 | . 6 . . Kinetic 105 | . 32 40 33 Thermal 111 | 4 107 . . Explosive . | . . . . Electromagnetic 19 | 4 15 . . Robot Hit Streak 13 | 2 10 4 13 Robot Miss Streak 4 | 2 4 3 3 Penetration Max . | . . . . Secondary Targets 1 | . 1 . . Max Gunslinging Chain 1 | . 1 . . Shots Hit Robots 142 | 2 89 20 31 Core Hits 46 | 2 32 7 5 Critical Kills . | . . . . Critical Parts Destroyed . | . . . . Critical Strikes 6 | . 5 1 . Burn 4 | . 4 . . Blast 1 | . . 1 . Corrupt 1 | . 1 . . Melee Attacks 4 | . . . 4 Impact . | . . . . Slashing 4 | . . . 4 Piercing . | . . . . Sneak Attacks 1 | . . . 1 Combat Hostiles . | . . . . Follow-up Attacks . | . . . . Damage Inflicted 2173 | 28 1216 386 543 Guns 946 | 28 918 . . Cannons 1035 | . 294 370 371 Explosions . | . . . . Melee 172 | . . . 172 Ramming 20 | . 4 16 . Kinetic 1035 | . 294 370 371 Thermal 756 | . 756 . . Explosive . | . . . . Electromagnetic 190 | 28 162 . . Impact . | . . . . Slashing 172 | . . . 172 Piercing . | . . . . Highest Corruption . | . . . . Average Corruption . | . . . . Corruption Purged . | . . . . Corruption Blocked . | . . . . Overload Shots . | . . . . Overflow Damage 3 | . 1 2 . Projectiles 3 | . 1 2 . Explosions . | . . . . Melee . | . . . . Knockbacks 14 | . 2 6 6 Impact . | . . . . Kinetic 12 | . 2 4 6 Secondary 2 | . . 2 . Self-Inflicted Damage . | . . . . Shots . | . . . . Rammed 4 | . 1 3 . Targets Rammed 4 | . 1 3 . Kicked . | . . . . Crushed . | . . . . Highest Temperature 417 | 100 417 297 . Average Temperature 111 | 56 111 121 . Received Heat Transfer 516 | . 330 162 24 Effects 5 | . 3 2 . Shutdowns 1 | . 1 . . Energy Bleed 3 | . 1 2 . Short Circuit 1 | . 1 . . Siege Activations . | . . . . Robots Corrupted . | . . . . Combat Hostiles . | . . . . Parts Fried 1 | . 1 . . Impact Corruptions . | . . . . Robots Melted 1 | . 1 . . Combat Hostiles . | . . . . Parts Melted 4 | . 4 . . Heat Transferred 2388 | . 2388 . . Parts Sabotaged . | . . . . Parts Stolen . | . . . . Parts Stripped . | . . . . Power Chain Reactions . | . . . . Alert | -11 -10 -10 -10 ------- Run | Yrd Mat Min Sub Peak Influence 193 | 10 193 139 . Initial 57 | . 6 57 . Average 62 | 8 74 50 . Maximum Alert Level . | . . . . Low Security (%) 100 | 100 100 100 . Level 1 . | . . . . Level 2 . | . . . . Level 3 . | . . . . Level 4 . | . . . . Level 5 . | . . . . High Security . | . . . . Max Security . | . . . . Squads Dispatched 4 | . 4 . . Investigation 3 | . 3 . . Extermination . | . . . . Reinforcement 1 | . 1 . . Assault . | . . . . Garrison . | . . . . Intercept . | . . . . Searches Triggered . | . . . . Construction Impeded . | . . . . Haulers Reinforced . | . . . . Active Scanning Responses . | . . . . Cargo Convoy Interrupts . | . . . . Stealth | -11 -10 -10 -10 --------- Run | Yrd Mat Min Sub Distress Signals . | . . . . Communications Jammed . | . . . . Distress Signals . | . . . . Times Spotted 31 | . 19 7 5 Peak Tracking Total 4 | . 4 3 2 Tactical Retreats . | . . . . Traps | -11 -10 -10 -10 ------- Run | Yrd Mat Min Sub Traps Triggered 1 | . 1 . . Indirectly . | . . . . Trap Hack Attempts . | . . . . Triggered . | . . . . Disarmed . | . . . . Reprogrammed . | . . . . Reused . | . . . . Traps Extracted . | . . . . Installed . | . . . . Triggered . | . . . . Most Traps Carried 2 | . . . 2 Machines | -11 -10 -10 -10 ---------- Run | Yrd Mat Min Sub Machines Disabled 2 | . . 2 . Max in Single Turn 1 | . . 1 . Machines Repaired . | . . . . Machines Dismantled . | . . . . Machines Sabotaged . | . . . . Overloaded Fab Kills . | . . . . Hacking | -11 -10 -10 -10 --------- Run | Yrd Mat Min Sub Machines Accessed 9 | . 9 . . Terminals 7 | . 7 . . Fabricators . | . . . . Repair Stations . | . . . . Recycling Units 2 | . 2 . . Scanalyzers . | . . . . Garrison Access . | . . . . Total Hacks 27 | . 27 . . Successful 14 | . 14 . . Failed 13 | . 13 . . Catastrophic 1 | . 1 . . Database Lockouts . | . . . . Manual 24 | . 24 . . Terminals 21 | . 21 . . Fabricators . | . . . . Repair Stations . | . . . . Recycling Units 6 | . 6 . . Scanalyzers . | . . . . Garrison Access . | . . . . Terminal Hacks 1 | . 1 . . Terminal Index 1 | . 1 . . Fabricator Hacks . | . . . . Repair Station Hacks . | . . . . Recycling Unit Hacks 1 | . 1 . . Retrieve Components 1 | . 1 . . Scanalyzer . | . . . . Garrison Access Hacks . | . . . . Unauthorized Hacks 12 | . 12 . . Terminals 10 | . 10 . . Assimilate 2 | . 2 . . Botnet 5 | . 5 . . Disrupt 1 | . 1 . . Operators 1 | . 1 . . Skim 1 | . 1 . . Fabricators . | . . . . Repair Stations . | . . . . Recycling Units 2 | . 2 . . Tunnel 2 | . 2 . . Scanalyzers . | . . . . Garrison Access . | . . . . Data Cores Recovered . | . . . . Used . | . . . . Hacking Detections 8 | . 8 . . Full Trace Events . | . . . . Feedback Events . | . . . . Feedback Blocked . | . . . . Robot Schematics Acquired . | . . . . Robots Built . | . . . . Authchips . | . . . . Time . | . . . . Total Robot Build Rating . | . . . . Part Schematics Acquired . | . . . . Parts Built . | . . . . Authchips . | . . . . Time . | . . . . Total Part Build Rating . | . . . . Parts Repaired . | . . . . Time . | . . . . Parts Recycled . | . . . . Recycled Matter . | . . . . Retrieved Matter . | . . . . Retrieved Components 7 | . 7 . . Parts Scanalyzed . | . . . . Part Schematics Acquired . | . . . . Parts Damaged . | . . . . Bothacking | -11 -10 -10 -10 ------------ Run | Yrd Mat Min Sub Used RIF Installer . | . . . . Robots Hacked . | . . . . Non-combat . | . . . . Combat . | . . . . Robot Hacks Applied . | . . . . Relay Couplers Released . | . . . . Fabnet Peak Effective % . | . . . . Robots Rewired . | . . . . Allies Hacked . | . . . . Hacks Repelled . | . . . . Allies | -11 -10 -10 -10 -------- Run | Yrd Mat Min Sub Total Allies 2 | . . 2 . Largest Group 2 | . . 2 2 Highest-Rated Group 38 | . . 38 38 Highest-Rated Ally 31 | . . 31 31 Total Orders . | . . . . Ally Attacks 25 | . . 12 13 Total Damage 360 | . . 168 192 Kills 6 | . . 4 2 Allies Corrupted . | . . . . Allies Melted . | . . . . Intel | -11 -10 -10 -10 ------- Run | Yrd Mat Min Sub Robot Analysis Total . | . . . . Derelict Logs Recovered 1 | . . 1 . Drone Launches . | . . . . Drone Recoveries . | . . . . Exploration | -11 -10 -10 -10 ------------- Run | Yrd Mat Min Sub Turns Passed 3017 | 38 1358 1090 531 Spaces Moved 1556 | 11 627 631 287 Core . | . . . . Treads 1398 | . 480 631 287 Legs 9 | 9 . . . Wheels 149 | 2 147 . . Hover . | . . . . Flight . | . . . . Fastest Speed 80 | 80 80 160 160 Average Speed 152 | 112 141 160 160 Slowest Speed 160 | 120 160 160 160 Overloaded Moves . | . . . . Propulsion Burnouts . | . . . . Robots Hopped . | . . . . Cave-ins Triggered . | . . . . Exploration Rate (%) 53 | 2 92 98 22 Regions Visited 3 Branch Regions 2 Pre-discovered Areas 3 | . 2 1 . Known Exits Taken . | . . . . Unknown Exits Taken 3 | 1 1 1 . Scrap Searched 3 | . . 3 . Spaces Dug 6 | . 6 . . Terrain Destroyed 6 | . 6 . . Melee . | . . . . Projectile 6 | . 6 . . AOE . | . . . . Terrain Rammed . | . . . . Walls Destroyed . | . . . . Machines Disabled . | . . . . Actions | -11 -10 -10 -10 --------- Run | Yrd Mat Min Sub Total 1946 | 27 927 671 321 Wait 197 | 3 189 5 . Move 1553 | 10 626 630 287 Hop . | . . . . Pick Up 23 | 3 9 7 4 Fast Attach 4 | 1 2 1 . Attach 4 | . 1 2 1 Detach 1 | . . 1 . Swap 17 | 3 11 . 3 Drop 16 | 3 6 2 5 Fire 123 | 4 82 20 17 Melee 4 | . . . 4 Ram . | . . . . Kick . | . . . . Crush 4 | . 1 3 . Escape Stasis . | . . . . Rewire . | . . . . Trap . | . . . . Miscellaneous . | . . . . Route ------- -11/Scrapyard -10/Materials (discovered 6 exits: [*Mat x3] / [*Min x2] / [Sub]) -10/Mines (discovered 3 exits: [*Mat x2] / [*Sub]) -10/Subcaves History --------- Turn | Location | Event 14 | -11/Scrapyard | Discovered new exit (range 2) 39 | -11/Scrapyard | Entered Materials 310 | -10/Materials | Build established: Mutant 458 | -10/Materials | Discovered new exit (range 16) 697 | -10/Materials | Discovered new exit (range 16) 857 | -10/Materials | Core integrity fell below 50% 963 | -10/Materials | Discovered new exit (range 9) 1045 | -10/Materials | Discovered new exit (range 13) 1110 | -10/Materials | Discovered new exit (range 10) 1249 | -10/Materials | Discovered new exit (range 15) 1397 | -10/Materials | Entered Mines 1412 | -10/Mines | Learned 8 Materials zone layouts 1500 | -10/Mines | Learned location of Storage (-8) 1652 | -10/Mines | Discovered new exit (range 6) 1924 | -10/Mines | A weapon hastily lodged in a ceiling crevice suddenly fell to the ground 2109 | -10/Mines | Discovered new exit (range 4) 2471 | -10/Mines | Discovered new exit (range 6) 2487 | -10/Mines | Entered Subcaves 2487 | -10/Subcaves | Accompanied by 2 allies 2492 | -10/Subcaves | Led the pair of lost Derelicts to an unsafe place 2536 | -10/Subcaves | Shifting Twisted Machinery released Shrapnel Trap 2537 | -10/Subcaves | Shifting Twisted Machinery released Flamer 2968 | -10/Subcaves | Core integrity fell below 20% 3014 | -10/Subcaves | Shifting Twisted Machinery released Sub. Machine Gun 3018 | -10/Subcaves | Destroyed by HX-ACX(R) with Subdweller Machine Gun Last Messages --------------- 02764_ 45-T6E(R): "OHNO!" 02770_ Subatomizers dissect the Ion Engine. 02771_ 45-T6E(R) destroyed. 02785_ Subatomizers dissect the Ion Engine. 02960_ DT-WBZ(R) knocked back. 02961_ BV-3C0(g) destroyed. 02963_ DT-WBZ(R) knocked back. 02969_ DT-WBZ(R) destroyed. 02973_ 1H-QXN(z) pulls a Mak. Hammer out of the Twisted Machinery. 02977_ 1H-QXN(z) destroyed. 02984_ HX-ACX(R) knocked back. 02987_ HX-ACX(R) affixes Scrap Shield Fragment to Scrap Shield. 02987_ HX-ACX(R) knocked back. 02993_ HX-ACX(R) affixes Scrap Shield Fragment to Scrap Shield. 03004_ Lgt. Cannon destroyed. 03008_ Acquired 2 matter. 03010_ Acquired 3 matter. Sub. Machine Gun falls loose from the Twisted Machinery. 03014_ Critical hit (Destroy). 03014_ Lgt. Armor Plating destroyed. Map ----- +----------------------------------------------------+ | ##### % #####? ^##??????????????? | | #####???????????????? | | % ### ##????????????????? | | # ###### %##?## ##### #????????????????? | | ?###?????####???####???## ##????????????????? | | ??????????????????##????# #?????????????????? | | ?????????????????## #??## #?????????????????? | | ????????????????## #?# ##????????????????? | | ????????????????# ?# # #????????????????? | | ?????????????????# ## ##????????????????? | | ??????????????????# #?????????????????? | | ??????????????????### #?????????????????? | | ????????????????????## ##?##??????????????? | | ????????????????????## ## #??????????????? | | ???????????????????## ##??????????????? | | ??????????????????## #??????????????? | | ??????????????????# # #??????????????? | | ??????????????????# # ##??????????????? | | ??????????????????# #???????????????? | | ??????????????????# ##??????????????? | | ??????????????????## ## #??????????????? | | ???????????????????### ###! #??????????????? | | ?????????????????????##?##%= #??????????????? | | ???????????????????????##%=% ##??????????????? | | ???????????????????????#= ##???????????????? | | ??????????????????????##R@ #????????????????? | | ??????????????????????#%%% ##???????????????? | | ??????????????????????#! %% #???????????????? | | ?????????????????# %### #???????????????? | | ?????????????????# " ?# ""##???????????????? | | ????????????????# " "??# "????????????????? | | ????????????????#?"[ ??? # #???????????????? | | ????????????????? "??? #???????????????? | | ????????????????# "???"""% ???????????????? | | ???????????????? "??? "## ???????????????? | | ???????????????##???# ??## #??????????????? | | ???????????????????? ????## #??????????????? | | ???????????????????"??????? ##??????????????? | | ??????????????????????????? ???????????????? | | ??????????????????????????? ???????????????? | | ??????????????????????????? ???????????????? | | ?????????????????????????????????????????????? | | ?????????????????????????????????????????????? | | ?????????????????????????????????????????????? | | ?????????????????????????????????????????????? | | ?????????????????????????????????????????????? | | ?????????????????????????????????????????????? | | ?????????????????????????????????????????????? | | ?????????????????????????????????????????????? | | ?????????????????????????????????????????????? | +----------------------------------------------------+ Best States ------------- Heat Dissipation 25 Energy Generation 12 Energy Capacity 265 Matter Stores 300 Matter Capacity 300 Sight Range 16 Terrain Scan Range 16 Terrain Scan Density 10 Armor Coverage 150 Evasion (%) 45 Recoil Reduction 2 Authchip Count 1 Item Schematics ----------------- None Robot Schematics ------------------ None Fabricated ------------ Nothing Alien Tech Used ----------------- None Achievements -------------- None Challenges ------------ None Game ------ Seed HeatSubatomicFlakker Manual? 0 Play Time 00:18:17 Cumulative 117.3 hours Start 2024.11.19 @ 12:13:44 End 2024.11.19 @ 12:37:27 Sessions 1 Manual Loads 0 Difficulty Rogue Special Mode None Game No. 217 Rogue 217 Adventurer 0 Explorer 0 Win Type - Total 0 Types 0/0/0/0/0/0/0/0/0 Lore% 42 Gallery% 40 Achievement% 35 Wizard Run 0 Options --------- Layout 0 ASCII 0 Keyboard 0 Movement Mouse Keybinds 0 Fullscreen 1 Font 24/Smallcaps Map View 91x25 Zoom Use 95% Tactical HUD 1 Map Filters NONE Filters NONE Steam 1 RUN: caaba671-400a-4223-baf5-23909f175ab6